Cogmind - Beta 13 @@@ ROGUE MODE // 2024.04.10 @ 13:05:54 Player: Stavbearer Result: Destroyed by G-47 Trooper with Particle Gun Performance ------------- Evolutions (2) 1000 Regions Visited (3) 600 Robots Destroyed (39) 195 Value Destroyed (1118) 1118 Prototype IDs (6) 120 Alien Tech Used (0) 0 Bonus (0) 0 TOTAL SCORE: 3033 Bonus ------- None Cogmind --------- Core Integrity 0/550 Matter 274/300 Energy 160/160 System Corruption 0% Temperature Cool (9) Movement Walking (120) Location -8/Materials Parts ------- > --- POWER (1) -------- Light Nuclear Core > --- PROPULSION (2) --- Aluminum Leg > --- UTILITY (5) ------ Improved Signal Interpreter Improved Targeting Computer > --- WEAPON (3) ------- (None) > --- INVENTORY (5) ---- ECM Suite Peak State ------------ > --- POWER ------------ Improved Ion Engine > --- PROPULSION ------- Light Treads Light Treads > --- UTILITY ---------- Improved Heat Sink Sensor Array Improved Signal Interpreter Hardened Medium Armor Plating Hardened Medium Armor Plating > --- WEAPON ----------- Improved Assault Rifle Flak Cannon Flak Cannon > --- INVENTORY -------- Improved Targeting Computer ECM Suite Heavy Assault Rifle [Rating: 26] Favorites ----------- Power Light Ion Engine Engine Light Ion Engine Power Core Light Nuclear Core Propulsion Light Treads Treads Light Treads Leg Aluminum Leg Wheel Compact Wheel Hover Unit Hover Unit Flight Unit VTOL Module Utility Hardened Medium Armor Plating Device ECM Suite Storage Small Storage Unit Processor Signal Interpreter Protection Hardened Medium Armor Plating Weapon Flak Cannon Energy Gun Medium Laser Ballistic Gun Light Assault Rifle Ballistic Cannon Flak Cannon Build | -11 -10 -9 -8 ------- Run | Yrd Mat Mat Mat Slots Evolved 4 | . . 2 2 Power . | . . . . Propulsion . | . . . . Utility 3 | . . 1 2 Weapon 1 | . . 1 . Parts Attached 57 | 7 16 25 9 Power 7 | 1 1 3 2 Engine 5 | 1 1 3 . Core 2 | . . . 2 Reactor . | . . . . Propulsion 17 | 2 6 8 1 Treads 2 | . . 2 . Leg 5 | 2 1 1 1 Wheel 3 | . 2 1 . Hover 3 | . 2 1 . Flight 4 | . 1 3 . Utility 22 | 2 7 8 5 Device 8 | 1 4 1 2 Storage 1 | 1 . . . Processor 3 | . 1 1 1 Hackware . | . . . . Protection 10 | . 2 6 2 Artifact . | . . . . Weapon 11 | 2 2 6 1 Energy Gun 3 | 1 1 1 . Energy Cannon . | . . . . Ballistic Gun 6 | 1 1 3 1 Ballistic Cannon 2 | . . 2 . Launcher . | . . . . Special Weapon . | . . . . Impact Weapon . | . . . . Slashing Weapon . | . . . . Piercing Weapon . | . . . . Special Melee Weapon . | . . . . Unidentified Prototypes 1 | . . 1 . Parts Lost 25 | . 7 6 12 Power 5 | . 1 2 2 Propulsion 5 | . 2 1 2 Utility 6 | . 1 1 4 Weapon 9 | . 3 2 4 Highest Loss Streak 10 | . 4 3 10 To Critical Strikes . | . . . . Average Slot Usage (%) 86 | . 96 85 60 Engine 10 | . 13 9 5 Treads 8 | . . 15 2 Leg 1 | . 4 . . Wheel 6 | . 15 1 . Hover 3 | . 7 1 . Device 6 | . 8 2 12 Storage 1 | . 4 . . Processor 11 | . 11 11 10 Protection 10 | . 1 19 8 Energy Gun 3 | . 9 . . Ballistic Gun 12 | . 18 9 6 Ballistic Cannon 7 | . . 11 12 Naked Turns . | . . . . Heaviest Build 40 | 13 13 38 40 Greatest Support 40 | 20 20 40 40 Greatest Overweight (x) 13 | 1 2 1 13 Average Overweight (x) . | . . . 1 Largest Inventory Capacity 8 | 8 8 5 5 Average Capacity 5 | 7 6 5 5 Most Carried 8 | 4 8 5 5 Average Carried 3 | . 4 4 2 Final Capacity 8 | 8 5 5 5 Final Carried 5 | 3 4 5 1 Class Distribution -------------------- 53% | Mutant 25% | Tank 14% | Scavenger-Mutant 4% | Scavenger-Tank Dominant Class ---------------- Mutant | -10/Materials Tank | -9/Materials Mutant | -8/Materials Resources | -11 -10 -9 -8 ----------- Run | Yrd Mat Mat Mat Matter Collected 1307 | 270 212 511 314 Remotely . | . . . . Salvage Created 1123 | 32 197 717 177 Parts 85 | 4 15 58 8 Haulers Intercepted . | . . . . Recyclers Shooed 2 | . . 2 . Parts Field Recycled . | . . . . Retrieved Matter . | . . . . Parts Self-Destructed . | . . . . Prevented . | . . . . Kills | -11 -10 -9 -8 ------- Run | Yrd Mat Mat Mat Combat Hostiles Destroyed 28 | . 6 18 4 Melee 1 | . . . 1 Guns 15 | . 6 8 1 Cannons 11 | . . 9 2 AOE 1 | . . 1 . Classes Destroyed 9 | 1 3 5 . Worker 1 | . . 1 . Builder 1 | . . 1 . Tunneler 2 | 2 . . . Recycler 1 | . . 1 . Operator 1 | . . 1 . Watcher 5 | . 1 4 . Swarmer 6 | . 3 3 . Grunt 15 | . 3 9 3 Sentry 7 | . . 6 1 Best Kill Streak 6 | 2 3 6 1 Combat Bots Only 5 | . 3 5 1 Max Kills in Single Turn 2 | 1 2 1 1 Gunslinging 1 | . 1 . . Exploded 1 | . . 1 . Melee 1 | . . . 1 Uniques/NPCs Destroyed . | . . . . Combat | -11 -10 -9 -8 -------- Run | Yrd Mat Mat Mat Hostile Shots Fired 371 | . 95 148 128 Missed 95 | . 26 41 28 Damage Taken 3662 | . 762 1316 1584 Core 1041 | . 208 268 565 Absorbed by Shields . | . . . . Redirected to Shielding 40 | . 15 25 . Core Remaining (%) 49 | 100 16 33 . Volleys Fired 101 | 5 33 46 17 Largest 3 | 2 2 3 3 Hottest 111 | 70 70 111 111 Shots Fired 214 | 10 65 102 37 Gun 148 | 10 65 60 13 Cannon 66 | . . 42 24 Launcher . | . . . . Special . | . . . . Kinetic 187 | 5 48 97 37 Thermal 22 | 5 17 . . Explosive . | . . . . Electromagnetic 5 | . . 5 . Robot Hit Streak 29 | 2 29 9 10 Robot Miss Streak 5 | 2 3 5 5 Penetration Max . | . . . . Secondary Targets 3 | . 2 1 . Max Gunslinging Chain 1 | . 1 1 . Shots Hit Robots 152 | 5 49 70 28 Core Hits 106 | 2 15 63 26 Critical Kills . | . . . . Critical Parts Destroyed . | . . . . Critical Strikes 1 | 1 . . . Burn 1 | 1 . . . Melee Attacks . | . . . . Impact . | . . . . Slashing . | . . . . Piercing . | . . . . Sneak Attacks . | . . . . Combat Hostiles . | . . . . Follow-up Attacks . | . . . . Damage Inflicted 2563 | 75 553 1374 561 Guns 1450 | 75 535 723 117 Cannons 1018 | . . 615 403 Explosions 33 | . . 33 . Melee . | . . . . Ramming 62 | . 18 3 41 Kinetic 2172 | 24 384 1244 520 Thermal 202 | 51 151 . . Explosive . | . . . . Electromagnetic 127 | . . 127 . Impact . | . . . . Slashing . | . . . . Piercing . | . . . . Highest Corruption . | . . . . Average Corruption . | . . . . Corruption Purged . | . . . . Corruption Blocked . | . . . . Overload Shots . | . . . . Overflow Damage 2 | . . . 2 Projectiles 2 | . . . 2 Explosions . | . . . . Melee . | . . . . Knockbacks 22 | . . 11 11 Impact . | . . . . Kinetic 21 | . . 10 11 Secondary 1 | . . 1 . Self-Inflicted Damage 52 | . 8 31 13 Shots 2 | . . 2 . Rammed 10 | . 3 2 5 Targets Rammed 17 | . 3 2 12 Kicked 7 | . . . 7 Crushed . | . . . . Highest Temperature 413 | 27 141 413 145 Average Temperature 80 | 12 42 106 65 Received Heat Transfer 1176 | . 378 438 360 Siege Activations . | . . . . Robots Corrupted . | . . . . Combat Hostiles . | . . . . Parts Fried . | . . . . Impact Corruptions . | . . . . Robots Melted . | . . . . Combat Hostiles . | . . . . Parts Melted . | . . . . Heat Transferred 666 | 222 444 . . Parts Sabotaged . | . . . . Parts Stolen . | . . . . Parts Stripped . | . . . . Power Chain Reactions . | . . . . Alert | -11 -10 -9 -8 ------- Run | Yrd Mat Mat Mat Peak Influence 220 | 10 162 220 135 Initial 89 | . 6 . 89 Average 70 | 2 43 103 97 Maximum Alert Level 1 | . . 1 . Low Security (%) 95 | 100 100 88 100 Level 1 4 | . . 11 . Level 2 . | . . . . Level 3 . | . . . . Level 4 . | . . . . Level 5 . | . . . . High Security . | . . . . Max Security . | . . . . Squads Dispatched 5 | . 2 . 3 Investigation 1 | . 1 . . Extermination . | . . . . Reinforcement 2 | . 1 . 1 Assault . | . . . . Garrison 2 | . . . 2 Intercept . | . . . . Searches Triggered . | . . . . Construction Impeded . | . . . . Haulers Reinforced . | . . . . Active Scanning Responses . | . . . . Cargo Convoy Interrupts . | . . . . Stealth | -11 -10 -9 -8 --------- Run | Yrd Mat Mat Mat Distress Signals 7 | . 2 2 3 Communications Jammed . | . . . . Distress Signals . | . . . . Times Spotted 60 | . 20 28 12 Peak Tracking Total 8 | . 5 8 7 Tactical Retreats 5 | . 3 2 . Traps | -11 -10 -9 -8 ------- Run | Yrd Mat Mat Mat Traps Triggered 1 | . 1 . . Indirectly . | . . . . Trap Hack Attempts . | . . . . Triggered . | . . . . Disarmed . | . . . . Reprogrammed . | . . . . Reused . | . . . . Traps Extracted . | . . . . Installed . | . . . . Triggered . | . . . . Machines | -11 -10 -9 -8 ---------- Run | Yrd Mat Mat Mat Machines Disabled 2 | . . 2 . Max in Single Turn 2 | . . 2 . Machines Repaired . | . . . . Machines Dismantled . | . . . . Machines Sabotaged . | . . . . Overloaded Fab Kills . | . . . . Hacking | -11 -10 -9 -8 --------- Run | Yrd Mat Mat Mat Machines Accessed 9 | . 3 6 . Terminals 8 | . 3 5 . Fabricators . | . . . . Repair Stations . | . . . . Recycling Units . | . . . . Scanalyzers 1 | . . 1 . Garrison Access . | . . . . Total Hacks 32 | . 11 21 . Successful 17 | . 7 10 . Failed 15 | . 4 11 . Catastrophic 3 | . 1 2 . Database Lockouts . | . . . . Manual 7 | . 4 3 . Terminals 30 | . 11 19 . Fabricators . | . . . . Repair Stations . | . . . . Recycling Units . | . . . . Scanalyzers 2 | . . 2 . Garrison Access . | . . . . Terminal Hacks 15 | . 7 8 . Record 2 | . . 2 . Prototype ID Bank 2 | . 1 1 . Emergency Access Points 1 | . . 1 . Terminal Index 1 | . 1 . . Alert Level 3 | . 2 1 . Unreport Threat 1 | . . 1 . Locate Traps 2 | . . 2 . Dispatch Records 1 | . 1 . . Hauler Manifests 1 | . 1 . . Zone Layout 1 | . 1 . . Fabricator Hacks . | . . . . Repair Station Hacks . | . . . . Recycling Unit Hacks . | . . . . Scanalyzer 2 | . . 2 . Insert Component 1 | . . 1 . Analyze 1 | . . 1 . Garrison Access Hacks . | . . . . Unauthorized Hacks . | . . . . Terminals . | . . . . Fabricators . | . . . . Repair Stations . | . . . . Recycling Units . | . . . . Scanalyzers . | . . . . Garrison Access . | . . . . Data Cores Recovered 1 | . . 1 . Used 1 | . . 1 . Hacking Detections 8 | . 3 5 . Full Trace Events 1 | . . 1 . Feedback Events . | . . . . Feedback Blocked . | . . . . Robot Schematics Acquired . | . . . . Robots Built . | . . . . Authchips . | . . . . Time . | . . . . Total Robot Build Rating . | . . . . Part Schematics Acquired 1 | . . 1 . Parts Built . | . . . . Authchips . | . . . . Time . | . . . . Total Part Build Rating . | . . . . Parts Repaired . | . . . . Time . | . . . . Parts Recycled . | . . . . Recycled Matter . | . . . . Retrieved Matter . | . . . . Retrieved Components . | . . . . Parts Scanalyzed 1 | . . 1 . Part Schematics Acquired 1 | . . 1 . Parts Damaged 1 | . . 1 . Bothacking | -11 -10 -9 -8 ------------ Run | Yrd Mat Mat Mat Used RIF Installer . | . . . . Robots Hacked . | . . . . Non-combat . | . . . . Combat . | . . . . Robot Hacks Applied . | . . . . Relay Couplers Released . | . . . . Fabnet Peak Effective % . | . . . . Robots Rewired . | . . . . Allies Hacked . | . . . . Hacks Repelled . | . . . . Allies | -11 -10 -9 -8 -------- Run | Yrd Mat Mat Mat Total Allies . | . . . . Largest Group . | . . . . Highest-Rated Group . | . . . . Highest-Rated Ally . | . . . . Total Orders . | . . . . Ally Attacks . | . . . . Total Damage . | . . . . Kills . | . . . . Allies Corrupted . | . . . . Allies Melted . | . . . . Intel | -11 -10 -9 -8 ------- Run | Yrd Mat Mat Mat Robot Analysis Total . | . . . . Derelict Logs Recovered . | . . . . Drone Launches . | . . . . Drone Recoveries . | . . . . Exploration | -11 -10 -9 -8 ------------- Run | Yrd Mat Mat Mat Turns Passed 2434 | 289 827 1042 276 Spaces Moved 1430 | 152 530 626 122 Core 146 | 17 6 25 98 Treads 367 | . . 343 24 Legs 207 | 135 70 2 . Wheels 363 | . 197 166 . Hover 271 | . 255 16 . Flight 76 | . 2 74 . Fastest Speed 32 | 50 56 32 50 Average Speed 108 | 115 75 123 164 Slowest Speed 700 | 120 210 160 700 Overloaded Moves . | . . . . Propulsion Burnouts . | . . . . Robots Hopped . | . . . . Cave-ins Triggered . | . . . . Exploration Rate (%) 27 | 9 41 50 9 Regions Visited 3 Branch Regions . Pre-discovered Areas . | . . . . Known Exits Taken 2 | . 1 1 . Unknown Exits Taken 1 | 1 . . . Scrap Searched . | . . . . Spaces Dug . | . . . . Terrain Destroyed . | . . . . Melee . | . . . . Projectile . | . . . . AOE . | . . . . Terrain Rammed . | . . . . Walls Destroyed . | . . . . Machines Disabled . | . . . . Actions | -11 -10 -9 -8 --------- Run | Yrd Mat Mat Mat Total 2125 | 256 894 809 166 Wait 459 | 79 295 82 3 Move 1427 | 151 529 625 122 Hop . | . . . . Pick Up 37 | 12 11 13 1 Fast Attach 14 | . . 12 2 Attach 21 | 7 3 4 7 Detach 2 | . . . 2 Swap 22 | . 13 9 . Drop 25 | 2 7 16 . Fire 101 | 5 33 46 17 Melee . | . . . . Ram 9 | . 3 1 5 Kick 7 | . . . 7 Crush 1 | . . 1 . Escape Stasis . | . . . . Rewire . | . . . . Trap . | . . . . Miscellaneous . | . . . . Route ------- -11/Scrapyard -10/Materials -9/Materials -8/Materials History --------- Turn | Location | Event 12 | -11/Scrapyard | Discovered new exit (range 15) 290 | -11/Scrapyard | Entered Materials 310 | -10/Materials | Build established: Mutant 1080 | -10/Materials | Core integrity fell below 50% 1102 | -10/Materials | Discovered new exit (range 15) 1115 | -10/Materials | Core integrity fell below 20% 1116 | -10/Materials | Identified exit to Materials 1117 | -10/Materials | Entered another Materials area 1117 | -9/Materials | Evolved 2 slots: Utility x1, Weapon x1 1144 | -9/Materials | Lost 4 parts (1p1n2w) 1361 | -9/Materials | Lost 3 parts (1p1n1u) 1363 | -9/Materials | Core integrity fell below 50% 1989 | -9/Materials | Build established: Tank 2086 | -9/Materials | Discovered new exit (range 16) 2158 | -9/Materials | Identified exit to Materials 2159 | -9/Materials | Entered another Materials area 2159 | -8/Materials | Evolved 2 slots: Utility x2 2316 | -8/Materials | Garrison activated, responded to threat 2385 | -8/Materials | Core integrity fell below 50% 2422 | -8/Materials | Lost 10 parts (2p4u4w) 2427 | -8/Materials | Core integrity fell below 20% 2435 | -8/Materials | Destroyed by G-47 Trooper with Particle Gun Last Messages --------------- Acquired 173 matter. Sensor Array destroyed. Lgt. Nuclear Core destroyed. Slug penetrates G-47 Trooper. Hvy. Assault Rifle destroyed. Slammed into G-47 Trooper. Slug penetrates Purification Channel. Purification Channel disabled. Slammed into G-47 Trooper. G-47 Trooper destroyed. [Achievement: Fist Fight] Acquired 60 matter. Penetrated by Slug. Acquired Lgt. Nuclear Core. Acquired Aluminum Leg. Penetrated by Slug. Kicked H-55 Commando. ALERT: Hostiles spotted, dispatching reinforcements to Terminal M005. Kicked H-55 Commando. Map ----- +----------------------------------------------------+ | | | | | | | | | | | ?????????????????????????????????????????????????? | | ?????????????????????????????????????????????????? | | ?????????????????????????????????????????????????? | | ?????????????????????????????????????????????????? | | ?????????????????????????????????????????????????? | | ?????????????????????????????????????????????????? | | ?????????????????????????????????????????????????? | | ?????????????????????????????????????????????????? | | ????????????????##+#?????????????????????????????? | | ????????????????# #######??????????????????????? | | ???????????????? #! ! #??????????????????????? | | ????????????????# # #??????????#####???????? | | ????????????????# # " #??????????# #???????? | | ????????????????# # """ #??????????# #???????? | | ????????????????# # "" g#??????????# #???????? | | ????????????????# # """ #??????????# ######### | | ????????????????# # "" #??????????# | | ????????????????# # """ #??????????#! | | ????????????????# #b""" #??????????# ||| | | ????????????????# + "" #??????????# || | | ????????????????# # "h@#??????????# || | | ????????????????# # Y #??????????# | | ???????????????## #######??????????# ! | | ???????????????# ##########+###### | | ???????????????# [ | | ???????????????# = [% | | ???????????????# % = | | ???????????????# ####### #######+######+#### | | ???????????????#######?????# #?# #????? ?? | | ???????????????????????????# #?# #?????? | | ???????????????????????????+ #?# #???????? | | ???????????????????????????# #?# #????????? | | ???????????????????????????# #?# #????????? | | ???????????????????????????# #?# #????????? | | ???????????????????????????# #?########????????? | | ???????????????????????????# #?????????????????? | | ???????????????????????????# #?????????????????? | | ???????????????????????????# #?????????????????? | | ???????????????????????????# #?????????????????? | | ???????????????????????????# #?????????????????? | | ???????????????????????????# #?????????????????? | | ???????????????????????????# #?????????????????? | | ???????????????????????????? ??????????????????? | | ?????????????????????????????????????????????????? | | ?????????????????????????????????????????????????? | +----------------------------------------------------+ Best States ------------- Heat Dissipation 45 Energy Generation 14 Energy Capacity 265 Matter Stores 294 Matter Capacity 300 Sight Range 16 Robot Scan Range 14 Terrain Scan Range 14 Terrain Scan Density 10 ECM Strength 1 Armor Coverage 450 Propulsion Shielding 33 Evasion (%) 63 Targeting Accuracy 6 Recoil Reduction 2 Item Schematics ----------------- VTOL Module | -9/Materials | Scanalyzed Robot Schematics ------------------ None Fabricated ------------ Nothing Alien Tech Used ----------------- None Achievements -------------- Dynamic Key Fist Fight More Dakka Please Oops Shopping List Troublemaker Challenges ------------ None Game ------ Seed DeepAblativeCore Manual? 0 Play Time 00:47:46 Cumulative 5.2 hours Start 2024.04.10 @ 12:08:13 End 2024.04.10 @ 13:05:54 Sessions 1 Manual Loads 0 Difficulty Rogue Special Mode None Game No. 5 Rogue 5 Adventurer 0 Explorer 0 Win Type - Total 0 Types 0/0/0/0/0/0/0/0/0 Lore% 2 Gallery% 10 Achievement% 11 Wizard Run 0 Options --------- Layout 1 ASCII 0 Keyboard 0 Movement Arrows Keybinds 0 Fullscreen 1 Font 24/Smallcaps Map View 50x35 Zoom Use 0% Tactical HUD 0 Map Filters NONE Filters NONE Steam 1 RUN: a0a54119-4abf-4d0a-a59b-155310583a4f